fUSD/lending_fUSD_20260408
["ID","MTS","AMOUNT","RATE_DAILY","PERIOD"]
[420069544,1775647865574,-7390.22407294,0.0001576,2]
[420069545,1775647865583,-3605.0,0.0001577,2]
[420069546,1775647865592,-1500.0,0.00015778,2]
[420069547,1775647865602,-1500.0,0.00015778,2]
[420069548,1775647865611,-3605.0,0.00015779,2]
[420069549,1775647865621,-500.0,0.00015808,2]
[420069550,1775647865630,-500.0,0.00015808,2]
[420069551,1775647865640,-396.4808442,0.00015808,2]
[420069552,1775647865649,-151.0,0.00015837,2]
[420069553,1775647865659,-666.0,0.00015839,2]
[420069554,1775647865668,-500.0,0.00015839,2]
[420069555,1775647865678,-844.8,0.00015839,2]
[420069556,1775647865688,-589.57,0.00015839,2]
[420069557,1775647865698,-113846.4586908,0.0001584,2]
[420069558,1775647865708,-523.0,0.0001586,2]
[420069559,1775647865718,-200.0,0.00015871,2]
[420069560,1775647865727,-500.0,0.00015872,2]
[420069561,1775647865738,-500.0,0.00015872,2]
[420069562,1775647865748,-200.0,0.00015872,2]
[420069563,1775647865758,-2000.0,0.00015872,2]
[420069564,1775647865768,-2000.0,0.00015872,2]
[420069565,1775647865778,-2000.0,0.00015872,2]
[420069566,1775647865789,-2000.0,0.00015872,2]
[420069567,1775647865799,-2000.0,0.00015872,2]
[420069568,1775647865810,-2000.0,0.00015872,2]
[420069569,1775647865821,-2000.0,0.00015872,2]
[420069570,1775647865831,-2000.0,0.00015872,2]
[420069571,1775647865842,-2000.0,0.00015872,2]
[420069572,1775647865852,-2093.0,0.00015872,2]
[420069573,1775647865862,-500.0,0.0001589,2]
[420069574,1775647865872,-500.0,0.0001589,2]
[420069575,1775647865883,-500.0,0.0001589,2]
[420069576,1775647865893,-194.91667222,0.0001589,2]
[420069577,1775647865903,-1286.49380402,0.0001589,2]
[420069578,1775647865913,-2500.0,0.0001589,2]
[420069579,1775647865924,-176.66503354,0.0001589,2]
[420069580,1775647865934,-2500.0,0.0001589,2]
[420069581,1775647865944,-2500.0,0.0001589,2]
[420069582,1775647865954,-2500.0,0.0001589,2]
[420069583,1775647865964,-25000.0,0.00015891,3]
[420069584,1775647865974,-666.0,0.00015899,2]
[420069585,1775647865984,-25000.0,0.000159,3]
[420069586,1775647865994,-4706.7984,0.000159,2]
[420069587,1775647866004,-306.4717,0.000159,2]
[420069588,1775647866014,-22222.89873192,0.000159,3]
[420069589,1775647866023,-954.37102372,0.000159,2]
[420069590,1775647866034,-304.32444499,0.000159,2]
[420069591,1775647866043,-1825.79298403,0.000159,2]
[420069592,1775647866053,-17931.80882026,0.000159,2]
[420069593,1775647866063,-184.01842302,0.000159,2]
[420069594,1775647866073,-177.13551218,0.00015909,2]
[420069595,1775647866082,-576.75688538,0.00015973,2]
[420069596,1775647866092,-500.0,0.00015973,2]
[420069597,1775647866101,-500.0,0.00015973,2]
[420069598,1775647866110,-500.0,0.00015973,2]
[420069599,1775647866120,-500.0,0.00015973,2]
[420069600,1775647866129,-500.0,0.00015973,2]
[420069601,1775647866138,-500.0,0.00015973,2]
[420069602,1775647866148,-501.53334874,0.00015973,2]
[420069603,1775647866158,-500.0,0.00015973,2]
[420069604,1775647866167,-151.0,0.00015997,2]
[420069605,1775647866177,-151.0,0.00015997,2]
[420069606,1775647866187,-666.0,0.00015999,2]
[420069607,1775647866196,-500.0,0.00015999,2]
[420069608,1775647866205,-215.39830433,0.00015999,2]
[420069609,1775647866214,-844.8,0.00015999,2]
[420069610,1775647866224,-844.8,0.00015999,2]
[420069611,1775647866234,-844.8,0.00015999,2]
[420069612,1775647866244,-844.8,0.00015999,2]
[420069613,1775647866254,-844.8,0.00015999,2]
[420069614,1775647866263,-844.8,0.00015999,2]
[420069615,1775647866272,-845.00706313,0.00015999,2]
[420069616,1775647866283,-589.57,0.00015999,2]
[420069617,1775647866292,-589.57,0.00015999,2]
[420069618,1775647866302,-589.57,0.00015999,2]
[420069619,1775647866312,-589.57,0.00015999,2]
[420069620,1775647866322,-589.57,0.00015999,2]
[420069621,1775647866332,-589.57,0.00015999,2]
[420069622,1775647866342,-589.73574047,0.00015999,2]
[420069623,1775647866353,-5352720.01549533,0.00016,2]
[420069624,1775647867733,-15121.05079835,0.00016,2]
[420069625,1775647868017,-770.646739,9.772e-05,2]
[420069626,1775647868027,-1953.660195,0.000157,2]
[420069627,1775647868036,-1977.501114,0.000157,2]
[420069628,1775647868045,-151.0,0.000157,2]
[420069629,1775647868055,-2000.0,0.000159,2]
[420069630,1775647868065,-1951.72328151,0.00016,2]
[420069631,1775647868076,-8947.21879473,0.00016,2]
[420069632,1775647868088,-7823.38036117,0.00016,2]
[420069633,1775647868098,-1120.40350345,0.00016,2]
[420069634,1775647868109,-9077.54866152,0.00016,2]
[420069635,1775647868121,-4639.19173042,0.00016,2]
[420069636,1775647869312,-159.16,0.00010418,2]
[420069637,1775647869323,-151.0,0.00010418,2]
[420069638,1775647869334,-1032.81006792,0.000157,2]
[420069639,1775647869348,-2080.95059408,0.000157,2]
[420069640,1775647869359,-1953.660195,0.000157,2]
[420069641,1775647869371,-1977.501114,0.000157,2]
[420069642,1775647869386,-151.0,0.000157,2]
[420069643,1775647869397,-3055.50216296,0.00016,2]
[420069644,1775647869410,-3300.0,0.00016,2]
[420069645,1775647870289,-3113.760662,0.000157,2]
[420069646,1775647870299,-2613160.64398777,0.00016,2]
[420069647,1775647870309,-2000.0,0.00016,2]
[420069648,1775647870319,-1743112.96997744,0.00016,2]
[420069649,1775647870330,-3985889.72255652,0.00016,2]
[420069650,1775647870418,-344.66,0.000157,2]
[420069651,1775647870639,-1609.000195,0.000157,2]
[420069652,1775647870649,-294.885157,0.000157,2]
[420069653,1775647870661,-4632.50547422,0.00016,2]
[420069654,1775647870830,500.0,9.234e-05,2]
[420069655,1775647871215,1026.40652227,9.176e-05,2]
[420069656,1775647871486,150.0,9.238e-05,2]
[420069657,1775647871900,193.0,9.205e-05,2]
[420069658,1775647871994,8130.60347773,8.53e-05,2]
[420069659,1775647872018,10000.01,8.53e-05,2]
[420069660,1775647872041,10000.01,8.53e-05,2]
[420069661,1775647872066,4911.15702227,8.53e-05,2]
[420069662,1775647872881,500.0,8.653e-05,2]
[420069663,1775647872910,1000.0,9.201e-05,2]
[420069664,1775647874127,500.0,8.629e-05,2]
[420069665,1775647874170,500.0,8.629e-05,2]
[420069666,1775647874210,500.0,8.629e-05,2]
[420069667,1775647874254,500.0,8.629e-05,2]
[420069668,1775647874290,500.0,8.629e-05,2]
[420069669,1775647874365,294.35758631,8.629e-05,2]
[420069670,1775647880234,500.0,8.629e-05,2]
[420069671,1775647880271,500.0,8.629e-05,2]
[420069672,1775647880308,500.0,8.629e-05,2]
[420069673,1775647880349,341.15442042,8.629e-05,2]
[420069674,1775647880385,500.0,8.629e-05,2]
[420069675,1775647880432,500.0,8.629e-05,2]
[420069676,1775647880994,500.0,8.629e-05,2]
[420069678,1775647886422,500.0,8.629e-05,2]
[420069679,1775647886477,644.66933687,8.629e-05,2]
[420069680,1775647887701,500.0,8.629e-05,2]
[420069681,1775647887753,500.0,8.629e-05,2]
[420069682,1775647887822,500.0,8.629e-05,2]
[420069683,1775647887901,500.0,8.629e-05,2]
[420069684,1775647887934,153.20067224,8.629e-05,2]
[420069685,1775647890667,500.0,8.629e-05,2]
[420069686,1775647890699,500.0,8.629e-05,2]
[420069687,1775647890735,643.88484333,8.629e-05,2]
[420069688,1775647902069,500.0,8.629e-05,2]
[420069689,1775647902112,180.9569223,8.629e-05,2]
[420069690,1775647903507,3893.3091,8.527e-05,2]
[420069691,1775647909915,477.17140976,8.629e-05,2]
[420069692,1775647910073,2222.7758,8.527e-05,2]
[420069693,1775647916426,2500.0,8.53e-05,2]
[420069694,1775647953636,10000.01,8.518e-05,2]
[420069695,1775647953663,10000.01,8.518e-05,2]
[420069696,1775647953690,10000.01,8.518e-05,2]
[420069697,1775647953718,10000.01,8.518e-05,2]
[420069698,1775647954155,10000.01,8.518e-05,2]
[420069699,1775647954182,10000.01,8.518e-05,2]
[420069700,1775647954208,10000.01,8.518e-05,2]
[420069701,1775647954234,10000.01,8.518e-05,2]
[420069702,1775647954260,10000.01,8.518e-05,2]
[420069703,1775647954286,10000.01,8.518e-05,2]
[420069704,1775647963288,-334.01998683,8.517e-05,2]
[420069705,1775647963323,-500.0,8.517e-05,2]
[420069706,1775647963356,-500.0,8.517e-05,2]
[420069707,1775647963392,-378.16645555,8.517e-05,2]
[420069708,1775647963424,-500.0,8.517e-05,2]
[420069709,1775647963459,-494.44180076,8.517e-05,2]
[420069710,1775647963492,-500.0,8.517e-05,2]
[420069711,1775647963527,-500.0,8.517e-05,2]
[420069712,1775647963562,-415.0906667,8.517e-05,2]
[420069713,1775647971385,310.48417626,8.517e-05,2]
[420069714,1775647971417,239.24451914,8.517e-05,2]
[420069715,1775647971454,500.0,8.517e-05,2]
[420069716,1775647971486,371.23938005,8.517e-05,2]
[420069717,1775647971525,335.60410487,8.517e-05,2]
[420069718,1775647971554,29.05698344,8.517e-05,2]
[420069719,1775647972139,500.0,8.517e-05,2]
[420069720,1775647977155,182.65387148,8.517e-05,2]
[420069721,1775647982025,150.0,8.517e-05,2]
[420069722,1775647982256,300.0,8.517e-05,2]
[420069723,1775648012012,272.0,8.518e-05,2]
[420069724,1775648016165,8566.29914508,8.517e-05,2]
[420069725,1775648016188,10000.01,8.517e-05,2]
[420069726,1775648016211,10000.01,8.517e-05,2]
[420069727,1775648016234,0.00801178,8.517e-05,2]
[420069728,1775648041171,300.0,8.517e-05,2]
[420069729,1775648074067,272.0,8.518e-05,2]
[420069730,1775648074378,2016.87,4.947e-05,2]
[420069731,1775648074581,2016.87,5.207e-05,2]
[420069732,1775648074777,2016.87,5.468e-05,2]
[420069733,1775648074972,2016.87,5.728e-05,2]
[420069734,1775648075162,1360.52198822,5.988e-05,2]
[420069735,1775648075188,656.34801178,5.988e-05,2]
[420069736,1775648075350,2016.87,6.249e-05,2]
[420069737,1775648075749,2016.87,6.509e-05,2]
[420069738,1775648075943,2016.87,6.769e-05,2]
[420069739,1775648076136,2016.87,7.03e-05,2]
[420069740,1775648076332,1276.18198822,7.29e-05,2]
[420069741,1775648076356,740.68801178,7.29e-05,2]
[420069742,1775648076537,2016.87,7.551e-05,2]
[420069743,1775648076748,2016.87,7.811e-05,2]
[420069744,1775648077164,2016.87,8.071e-05,2]
[420069745,1775648077375,2016.87,8.332e-05,2]
[420069746,1775648101071,300.0,8.517e-05,2]
[420069747,1775648101308,891.84198822,8.517e-05,2]
[420069748,1775648101334,308.15801178,8.517e-05,2]
[420069749,1775648136059,272.0,8.518e-05,2]
[420069750,1775648161141,300.0,8.517e-05,2]
[420069751,1775648161973,150.0,8.517e-05,2]
[420069752,1775648165679,500.0,8.517e-05,2]
[420069753,1775648165715,500.0,8.517e-05,2]
[420069754,1775648165753,340.56346669,8.517e-05,2]
[420069755,1775648182102,264.71651889,8.517e-05,2]
[420069756,1775648191544,500.0,8.517e-05,2]
[420069757,1775648191648,546.10926053,8.517e-05,2]
[420069758,1775648198089,272.0,8.518e-05,2]
[420069759,1775648222719,300.0,8.517e-05,2]
[420069760,1775648230714,233.81399078,8.517e-05,2]
[420069761,1775648260111,272.0,8.518e-05,2]
[420069762,1775648280976,300.0,8.517e-05,2]
[420069763,1775648316455,-1000.0,8.518e-05,2]
[420069764,1775648317955,-1000.0,8.518e-05,2]
[420069765,1775648318364,-1000.0,8.518e-05,2]
[420069766,1775648318811,-1000.0,8.518e-05,2]
[420069767,1775648319243,-1000.0,8.518e-05,2]
[420069768,1775648319737,-1000.0,8.518e-05,2]
[420069769,1775648320047,-1000.0,8.518e-05,2]
[420069770,1775648320452,-1000.0,8.518e-05,2]
[420069771,1775648320839,-1000.0,8.518e-05,2]
[420069772,1775648321242,-1000.0,8.518e-05,2]
[420069773,1775648321565,-1000.0,8.518e-05,2]
[420069774,1775648321967,-1000.0,8.518e-05,2]
[420069775,1775648322121,272.0,8.518e-05,2]
[420069776,1775648322275,-1000.0,8.518e-05,2]
[420069777,1775648324310,-1000.0,8.518e-05,2]
[420069778,1775648324365,-1000.0,8.518e-05,2]
[420069779,1775648324420,-1000.0,8.518e-05,2]
[420069780,1775648324489,-1000.0,8.518e-05,2]
[420069781,1775648324596,-1000.0,8.518e-05,2]
[420069782,1775648324642,-1000.0,8.518e-05,2]
[420069783,1775648324850,-1000.0,8.518e-05,2]
[420069784,1775648325264,-1000.0,8.518e-05,2]
[420069785,1775648325585,-1000.0,8.518e-05,2]
[420069786,1775648326050,-1000.0,8.518e-05,2]
[420069787,1775648326488,-1000.0,8.518e-05,2]
[420069788,1775648326922,-1000.0,8.518e-05,2]
[420069789,1775648327318,-1000.0,8.518e-05,2]
[420069790,1775648327655,-1000.0,8.518e-05,2]
[420069791,1775648328089,-1000.0,8.518e-05,2]
[420069792,1775648328506,-1000.0,8.518e-05,2]
[420069793,1775648328912,-1000.0,8.518e-05,2]
[420069794,1775648329251,-1000.0,8.518e-05,2]
[420069795,1775648329669,-1000.0,8.518e-05,2]
[420069796,1775648330075,-1000.0,8.518e-05,2]
[420069797,1775648330479,-1000.0,8.518e-05,2]
[420069798,1775648330885,-1000.0,8.518e-05,2]
[420069799,1775648331306,-1000.0,8.518e-05,2]
[420069800,1775648331724,-1000.0,8.518e-05,2]
[420069801,1775648332550,-1000.0,8.518e-05,2]
[420069802,1775648332966,-1000.0,8.518e-05,2]
[420069803,1775648333372,-1000.0,8.518e-05,2]
[420069804,1775648333798,-1000.0,8.518e-05,2]
[420069805,1775648334211,-1000.0,8.518e-05,2]
[420069806,1775648335723,-1000.0,8.518e-05,2]
[420069807,1775648335773,-1000.0,8.518e-05,2]
[420069808,1775648335847,-1000.0,8.518e-05,2]
[420069809,1775648335925,-1000.0,8.518e-05,2]
[420069810,1775648336182,-1000.0,8.518e-05,2]
[420069811,1775648336629,-1000.0,8.518e-05,2]
[420069812,1775648337044,-1000.0,8.518e-05,2]
[420069813,1775648337349,-1000.0,8.518e-05,2]
[420069814,1775648337762,-1000.0,8.518e-05,2]
[420069815,1775648338010,-1000.0,8.518e-05,2]
[420069816,1775648338183,-1000.0,8.518e-05,2]
[420069817,1775648338585,-1000.0,8.518e-05,2]
[420069818,1775648338977,-1000.0,8.518e-05,2]
[420069819,1775648339378,-1000.0,8.518e-05,2]
[420069820,1775648339697,-1000.0,8.518e-05,2]
[420069821,1775648340124,-1000.0,8.518e-05,2]
[420069822,1775648340555,-1000.0,8.518e-05,2]
[420069823,1775648340971,-1000.0,8.518e-05,2]
[420069824,1775648341006,300.0,8.517e-05,2]
[420069825,1775648341387,-1000.0,8.518e-05,2]
[420069826,1775648341634,150.0,8.517e-05,2]
[420069827,1775648342029,-1000.0,8.518e-05,2]
[420069828,1775648342230,-1000.0,8.518e-05,2]
[420069829,1775648342661,-1000.0,8.518e-05,2]
[420069830,1775648343104,-1000.0,8.518e-05,2]
[420069831,1775648343513,-1000.0,8.518e-05,2]
[420069832,1775648344464,-1000.0,8.518e-05,2]
[420069833,1775648344514,-1000.0,8.518e-05,2]
[420069834,1775648344796,-1000.0,8.518e-05,2]
[420069835,1775648345214,-1000.0,8.518e-05,2]
[420069836,1775648345582,-1000.0,8.518e-05,2]
[420069837,1775648346971,-1000.0,8.518e-05,2]
[420069838,1775648347057,-1000.0,8.518e-05,2]
[420069839,1775648347175,-1000.0,8.518e-05,2]
[420069840,1775648347408,-1000.0,8.518e-05,2]
[420069841,1775648347860,-1000.0,8.518e-05,2]
[420069842,1775648348290,-1000.0,8.518e-05,2]
[420069843,1775648348662,-1000.0,8.518e-05,2]
[420069844,1775648349108,-1000.0,8.518e-05,2]
[420069845,1775648350010,-1000.0,8.518e-05,2]
[420069846,1775648350153,-1000.0,8.518e-05,2]
[420069847,1775648350442,-1000.0,8.518e-05,2]
[420069848,1775648350854,-1000.0,8.518e-05,2]
[420069849,1775648351256,-1000.0,8.518e-05,2]
[420069850,1775648351702,-1000.0,8.518e-05,2]
[420069851,1775648352113,-1000.0,8.518e-05,2]
[420069852,1775648352587,-1000.0,8.518e-05,2]
[420069853,1775648352993,-1000.0,8.518e-05,2]
[420069854,1775648353428,-1000.0,8.518e-05,2]
[420069855,1775648353855,-1000.0,8.518e-05,2]
[420069856,1775648354276,-1000.0,8.518e-05,2]
[420069857,1775648354724,-1000.0,8.518e-05,2]
[420069858,1775648355193,-1000.0,8.518e-05,2]
[420069859,1775648355630,-1000.0,8.518e-05,2]
[420069860,1775648356045,-1000.0,8.518e-05,2]
[420069861,1775648356468,-1000.0,8.518e-05,2]
[420069862,1775648357959,-1000.0,8.518e-05,2]
[420069863,1775648358843,-1000.0,8.518e-05,2]
[420069864,1775648359270,-1000.0,8.518e-05,2]
[420069865,1775648359730,-1000.0,8.518e-05,2]
[420069866,1775648361063,-1000.0,8.518e-05,2]
[420069867,1775648361524,-1000.0,8.518e-05,2]
[420069868,1775648362028,-1000.0,8.518e-05,2]
[420069869,1775648363091,-1000.0,8.518e-05,2]
[420069870,1775648363578,-1000.0,8.518e-05,2]
[420069871,1775648364022,-1000.0,8.518e-05,2]
[420069872,1775648364429,-1000.0,8.518e-05,2]
[420069873,1775648364862,-1000.0,8.518e-05,2]
[420069874,1775648366025,-1000.0,8.518e-05,2]
[420069875,1775648366867,-1000.0,8.518e-05,2]
[420069876,1775648368969,-1000.0,8.518e-05,2]
[420069877,1775648369803,-1000.0,8.518e-05,2]
[420069878,1775648370684,-1000.0,8.518e-05,2]
[420069879,1775648371368,1000.0,8.518e-05,2]
[420069880,1775648372553,1001.80981936,8.518e-05,2]
[420069881,1775648376100,-667.0,8.518e-05,2]
[420069882,1775648384173,272.0,8.518e-05,2]
[420069883,1775648386367,185.20659827,8.517e-05,2]
[420069884,1775648386399,177.59095729,8.517e-05,2]
[420069885,1775648386439,445.10394155,8.517e-05,2]
[420069886,1775648396568,1136.93743486,8.178e-05,2]
[420069887,1775648396592,449.86750214,8.178e-05,2]
[420069888,1775648402684,300.0,8.517e-05,2]
[420069889,1775648402728,300.0,8.517e-05,2]
[420069890,1775648402768,1200.0,8.517e-05,2]
[420069891,1775648418072,7750.14249786,8.418e-05,2]
[420069892,1775648418096,2551.34750214,8.418e-05,2]
[420069893,1775648421511,1152.33695724,8.517e-05,3]
[420069894,1775648446292,272.0,8.518e-05,2]
[420069895,1775648461195,300.0,8.517e-05,2]
[420069896,1775648479772,2052.8130445,8.518e-05,2]
[420069897,1775648488540,4823.84945336,8.348e-05,2]
[420069898,1775648488570,363.07154664,8.348e-05,2]
[420069899,1775648488608,318.755,8.348e-05,2]
[420069900,1775648508199,272.0,8.518e-05,2]
[420069901,1775648521829,150.0,8.517e-05,2]
[420069902,1775648522173,300.0,8.517e-05,2]
[420069906,1775648551130,294.97396364,8.517e-05,2]
[420069907,1775648570246,272.0,8.518e-05,2]
[420069909,1775648632290,272.0,8.518e-05,2]
[420069910,1775648641193,300.0,8.517e-05,2]
[420069911,1775648684343,500.0,8.3e-05,2]
[420069912,1775648701143,300.0,8.517e-05,2]
[420069913,1775648701612,150.0,8.517e-05,2]
[420069914,1775648701675,1200.0,8.517e-05,2]
[420069915,1775648722315,1000.0,8.517e-05,2]
[420069916,1775648868653,1152.33695723,8.517e-05,3]
[420069917,1775648881524,300.0,8.517e-05,2]
[420069918,1775648881590,150.0,8.517e-05,2]
[420069919,1775648926252,-150.0,8.518e-05,2]
[420069920,1775648926282,-250.0,8.518e-05,2]
[420069921,1775648926315,-4200.01,8.518e-05,2]
[420069922,1775648926454,-799.99,8.518e-05,2]
[420069923,1775648926485,-339.24114641,8.518e-05,2]
[420069924,1775648926515,-250.0,8.518e-05,2]
[420069925,1775648926546,-2221.54770718,8.518e-05,2]
[420069926,1775648926676,-2778.45229282,8.518e-05,2]
[420069927,1775648926815,-5000.0,8.518e-05,2]
[420069928,1775648938686,-2859.57790308,8.53e-05,2]
[420069929,1775648938802,-10000.01,8.53e-05,2]
[420069930,1775648938929,-10000.01,8.53e-05,2]
[420069931,1775648939077,-10000.01,8.53e-05,2]
[420069932,1775648939206,-182.17259692,8.53e-05,2]
[420069933,1775648939238,-2016.87,8.592e-05,2]
[420069934,1775648939269,-1000.0,8.599e-05,2]
[420069935,1775648939300,-1000.0,8.599e-05,2]
[420069936,1775648939405,-0.02,8.599e-05,2]
[420069937,1775648939428,-1601.90480616,8.599e-05,2]
[420069938,1775648939444,-8398.06519384,8.599e-05,2]
[420069939,1775648939453,-150.0,8.8e-05,2]
[420069940,1775648939463,-1451.92480616,8.8e-05,2]
[420069941,1775648944524,-300.0,8.529e-05,2]
[420069942,1775648959685,-5000.0,8.665e-05,2]
[420069943,1775648974552,-250.0,8.732e-05,2]
[420069944,1775648989645,-1451.94480616,8.8e-05,2]
[420069945,1775648989670,-7096.12038768,8.8e-05,2]
[420069946,1775648989763,-499.99,8.8e-05,2]
[420069947,1775648989795,-3616.41,8.8e-05,2]
[420069948,1775648989836,-1767.21,8.8e-05,2]
[420069949,1775648989900,-4999.99,8.8e-05,2]
[420069950,1775648989937,-0.03,8.8e-05,2]
[420069951,1775648989999,-150.96,8.8e-05,2]
[420069952,1775648990027,-999.99,8.8e-05,2]
[420069953,1775648990057,-299.99,8.8e-05,2]
[420069954,1775648990125,-7098.13,8.8e-05,2]
[420069955,1775648990161,-2901.86,8.8e-05,2]
[420069956,1775648990190,-150.99,8.8e-05,2]
[420069957,1775648990240,-3894.31,8.8e-05,2]
[420069958,1775648990273,-4333.17,8.8e-05,2]
[420069959,1775648990297,-1333.67,8.8e-05,2]
[420069960,1775648990342,-1621.24,8.8e-05,2]
[420069961,1775648990378,-6757.53,8.8e-05,2]
[420069962,1775648990461,-2740.12,8.8e-05,2]
[420069963,1775648990485,-4519.77,8.8e-05,2]
[420069964,1775648992025,-0.02,8.8e-05,2]
[420069965,1775648992065,-0.04,8.8e-05,2]
[420069966,1775648992262,-9999.93,8.8e-05,2]
[420069967,1775648992282,-7176.46,8.8e-05,2]
[420069968,1775649004796,-2016.87,8.852e-05,2]
[420069969,1775649019811,-238.0,8.888e-05,2]
[420069970,1775649019843,-1200.0,8.888e-05,2]
[420069971,1775649032037,-5000.0,8.889e-05,2]
[420069972,1775649032047,-5000.0,8.889e-05,2]
[420069974,1775649032058,-2016.87,9.113e-05,2]
[420069976,1775649032069,-179.0,9.151e-05,2]
[420069977,1775649032079,-150.0,9.2e-05,2]
[420069979,1775649032089,-658.0,9.223e-05,2]
[420069980,1775649032098,-424.0,9.233e-05,2]
[420069981,1775649032109,-936.0,9.238e-05,2]
[420069982,1775649032119,-1133.0,9.242e-05,2]
[420069983,1775649032129,-364.81122194,9.252e-05,2]
[420069984,1775649032140,-1854.0,9.257e-05,2]
[420069985,1775649032150,-1466.0,9.26e-05,2]
[420069986,1775649032160,-1500.0,9.262e-05,2]
[420069987,1775649032170,-1771.0,9.277e-05,2]
[420069988,1775649032179,-226.0,9.279e-05,2]
[420069989,1775649032189,-196.0,9.295e-05,2]
[420069990,1775649032199,-1131.0,9.314e-05,2]
[420069991,1775649032209,-1363.0,9.332e-05,2]
[420069992,1775649032219,-713.0,9.351e-05,2]
[420069993,1775649032230,-500.0,9.352e-05,2]
[420069994,1775649032240,-1115.0,9.369e-05,2]
[420069995,1775649032250,-255.0,9.369e-05,2]
[420069996,1775649032261,-193.0,9.37e-05,2]
[420069997,1775649032278,-5000.0,9.37e-05,2]
[420069998,1775649032289,-250.0,9.37e-05,2]
[420069999,1775649032299,-2016.87,9.373e-05,2]
[420070000,1775649032309,-5000.0,9.382e-05,2]
[420070001,1775649032319,-2479.01,9.392e-05,2]
[420070002,1775649032329,-3569.65,9.406e-05,2]
[420070003,1775649032340,-1329.33,9.41e-05,2]
[420070004,1775649032350,-500.0,9.41e-05,2]
[420070005,1775649032360,-1300.93,9.436e-05,2]
[420070006,1775649032371,-250.0,9.531e-05,2]
[420070007,1775649032381,-2016.87,9.633e-05,2]
[420070008,1775649032391,-18615.44,9.687e-05,2]
[420070009,1775649032402,-166.66,9.693e-05,2]
[420070010,1775649032412,-5000.0,9.738e-05,2]
[420070011,1775649032422,-250.0,9.777e-05,2]
[420070012,1775649032433,-1680.0,9.777e-05,2]
[420070014,1775649032443,-2016.87,9.894e-05,2]
[420070015,1775649032452,-952.70532979,0.0001,2]
[420070016,1775649032462,-184.51547503,0.0001,2]
[420070017,1775649032472,-151.0,0.0001,2]
[420070018,1775649032482,-151.0,0.0001,2]
[420070019,1775649032492,-151.0,0.0001,2]
[420070020,1775649032503,-151.0,0.0001,2]
[420070021,1775649032512,-151.0,0.0001,2]
[420070022,1775649032523,-151.0,0.0001,2]
[420070024,1775649032533,-500.0,0.0001,2]
[420070025,1775649032544,-151.0,0.0001,2]
[420070026,1775649032554,-151.0,0.0001,2]
[420070027,1775649032564,-500.0,0.0001,2]
[420070028,1775649032575,-151.0,0.0001,2]
[420070029,1775649032586,-500.0,0.0001,2]
[420070030,1775649032597,-151.0,0.0001,2]
[420070031,1775649032607,-500.0,0.0001,2]
[420070032,1775649032618,-151.0,0.0001,2]
[420070033,1775649032629,-500.0,0.0001,2]
[420070034,1775649032639,-151.0,0.0001,2]
[420070035,1775649032649,-500.0,0.0001,2]
[420070036,1775649032659,-151.0,0.0001,2]
[420070037,1775649032670,-500.0,0.0001,2]
[420070038,1775649032680,-151.0,0.0001,2]
[420070039,1775649032690,-500.0,0.0001,2]
[420070040,1775649032701,-151.0,0.0001,2]
[420070041,1775649032710,-500.0,0.0001,2]
[420070042,1775649032721,-151.0,0.0001,2]
[420070043,1775649032731,-500.0,0.0001,2]
[420070044,1775649032741,-151.0,0.0001,2]
[420070045,1775649032751,-500.0,0.0001,2]
[420070046,1775649032761,-151.0,0.0001,2]
[420070047,1775649032777,-500.0,0.0001,2]
[420070048,1775649032787,-500.0,0.0001,2]
[420070049,1775649032797,-151.0,0.0001,2]
[420070050,1775649032807,-500.0,0.0001,2]
[420070051,1775649032818,-500.0,0.0001,2]
[420070052,1775649032828,-151.0,0.0001,2]
[420070053,1775649032838,-500.0,0.0001,2]